Entity,Date ,Expense Type,Expense Area,Supplier,Transaction Number,  Amount (�)  
South West Yorkshire NHS Foundation Trust,10-Dec-21,Provision of Healthcare,Forensic,Leeds & York Partnership NHS Foundation Trust,996451,"571,103"
South West Yorkshire NHS Foundation Trust,01-Dec-21,Provision of Healthcare,Forensic,Cygnet Health Care Ltd,CYGWYS16,"492,727"
South West Yorkshire NHS Foundation Trust,30-Dec-21,Provision of Healthcare,Forensic,Bradford District Care NHS Foundation Trust,201692,"442,136"
South West Yorkshire NHS Foundation Trust,30-Nov-21,Provision of Healthcare,Forensic,Bradford District Care NHS Foundation Trust,201607,"421,426"
South West Yorkshire NHS Foundation Trust,01-Dec-21,Provision of Healthcare,Forensic,Waterloo Manor Ltd,HONHSLS245,"292,294"
South West Yorkshire NHS Foundation Trust,01-Oct-21,Provision of Healthcare,Forensic,Cheswold Park Hospital,4222,"236,094"
South West Yorkshire NHS Foundation Trust,01-Nov-21,Provision of Healthcare,Forensic,Cheswold Park Hospital,4227,"220,310"
South West Yorkshire NHS Foundation Trust,01-Dec-21,Provision of Healthcare,Forensic,Cheswold Park Hospital,4232,"217,149"
South West Yorkshire NHS Foundation Trust,26-Nov-21,Provision of Healthcare,Wakefield,NHS Wakefield Ccg,7016401745,"102,169"
South West Yorkshire NHS Foundation Trust,03-Dec-21,IT Services,Trustwide,Daisy Corporate Services,3I482294,"90,250"
South West Yorkshire NHS Foundation Trust,03-Dec-21,Drugs,Trustwide,Bradford Hospitals NHS Trust,320117,"77,659"
South West Yorkshire NHS Foundation Trust,17-Dec-21,Provision of Healthcare,Forensic,Leeds & York Partnership NHS Foundation Trust,996491,"57,800"
South West Yorkshire NHS Foundation Trust,17-Dec-21,Provision of Healthcare,Forensic,Leeds & York Partnership NHS Foundation Trust,996492,"57,800"
South West Yorkshire NHS Foundation Trust,17-Dec-21,Provision of Healthcare,Forensic,Leeds & York Partnership NHS Foundation Trust,996493,"57,800"
South West Yorkshire NHS Foundation Trust,14-Dec-21,Staff Recharge,Trustwide,Leeds & York Partnership NHS Foundation Trust,996463,"56,247"
South West Yorkshire NHS Foundation Trust,25-Nov-21,IT Software,Trustwide,Insight Direct (Uk) Ltd,210004669121,"53,550"
South West Yorkshire NHS Foundation Trust,24-Nov-21,Provision of Healthcare,Forensic,Mersey Care NHS Foundation Trust,72481859,"44,641"
South West Yorkshire NHS Foundation Trust,24-Nov-21,Provision of Healthcare,Forensic,Mersey Care NHS Foundation Trust,72481860,"44,641"
South West Yorkshire NHS Foundation Trust,17-Dec-21,Provision of Healthcare,Forensic,Mersey Care NHS Foundation Trust,72482025,"44,641"
South West Yorkshire NHS Foundation Trust,07-Dec-21,Provision of Healthcare,Forensic,Rotherham Doncaster & South Humber Mental Health NHS Foundation Trust,0000091562,"40,266"
South West Yorkshire NHS Foundation Trust,03-Dec-21,IT Hardware,Trustwide,Dell Corporation Ltd,7402767352,"38,350"
South West Yorkshire NHS Foundation Trust,03-Dec-21,IT Hardware,Trustwide,Dell Corporation Ltd,7402767353,"38,350"
South West Yorkshire NHS Foundation Trust,03-Dec-21,IT Hardware,Trustwide,Dell Corporation Ltd,7402767354,"38,350"
South West Yorkshire NHS Foundation Trust,03-Dec-21,IT Hardware,Trustwide,Dell Corporation Ltd,7402767355,"38,350"
South West Yorkshire NHS Foundation Trust,03-Dec-21,IT Hardware,Trustwide,Dell Corporation Ltd,7402767356,"38,350"
South West Yorkshire NHS Foundation Trust,03-Dec-21,IT Hardware,Trustwide,Dell Corporation Ltd,7402767546,"38,350"
South West Yorkshire NHS Foundation Trust,03-Dec-21,IT Hardware,Trustwide,Dell Corporation Ltd,7402767547,"38,350"
South West Yorkshire NHS Foundation Trust,03-Dec-21,IT Hardware,Trustwide,Dell Corporation Ltd,7402767548,"38,350"
South West Yorkshire NHS Foundation Trust,03-Dec-21,IT Hardware,Trustwide,Dell Corporation Ltd,7402767549,"38,350"
South West Yorkshire NHS Foundation Trust,03-Dec-21,IT Hardware,Trustwide,Dell Corporation Ltd,7402767550,"38,350"
South West Yorkshire NHS Foundation Trust,03-Dec-21,IT Hardware,Trustwide,Dell Corporation Ltd,7402767551,"38,350"
South West Yorkshire NHS Foundation Trust,03-Dec-21,IT Hardware,Trustwide,Dell Corporation Ltd,7402767552,"38,350"
South West Yorkshire NHS Foundation Trust,03-Dec-21,IT Hardware,Trustwide,Dell Corporation Ltd,7402767553,"38,350"
South West Yorkshire NHS Foundation Trust,03-Dec-21,IT Hardware,Trustwide,Dell Corporation Ltd,7402767554,"38,350"
South West Yorkshire NHS Foundation Trust,03-Dec-21,IT Hardware,Trustwide,Dell Corporation Ltd,7402767555,"38,350"
South West Yorkshire NHS Foundation Trust,03-Dec-21,IT Hardware,Trustwide,Dell Corporation Ltd,7402767556,"38,350"
South West Yorkshire NHS Foundation Trust,03-Dec-21,IT Hardware,Trustwide,Dell Corporation Ltd,7402767557,"38,350"
South West Yorkshire NHS Foundation Trust,03-Dec-21,IT Hardware,Trustwide,Dell Corporation Ltd,7402767558,"38,350"
South West Yorkshire NHS Foundation Trust,05-Dec-21,IT Hardware,Trustwide,Dell Corporation Ltd,7402767839,"38,350"
South West Yorkshire NHS Foundation Trust,14-Oct-21,Drugs,Trustwide,NHS Business Services Authority,1000070944,"36,909"
South West Yorkshire NHS Foundation Trust,11-Nov-21,Drugs,Trustwide,NHS Business Services Authority,1000071280,"35,915"
South West Yorkshire NHS Foundation Trust,29-Nov-21,Rent,Barnsley,Community Health Partnerships Ltd,0060221109,"33,538"
South West Yorkshire NHS Foundation Trust,13-Nov-21,Mobile Phones,Trustwide,Vodafone Ltd,99614610,"33,213"
South West Yorkshire NHS Foundation Trust,31-Aug-21,Advocacy,Forensic,Cloverleaf Advocacy 2000 Ltd,10373,"32,358"
South West Yorkshire NHS Foundation Trust,15-Dec-21,Staff Services,Trustwide,Robertson Cooper Ltd,0603,"32,173"
South West Yorkshire NHS Foundation Trust,29-Nov-21,Rent,Barnsley,Chapelfield Medical Centre,287,"31,599"
South West Yorkshire NHS Foundation Trust,01-Oct-21,Provision of Healthcare,Forensic,Cheswold Park Hospital,4251,"31,110"
South West Yorkshire NHS Foundation Trust,30-Nov-21,Furniture,Trustwide,Pineapple Contracts,SI75015,"29,012"
South West Yorkshire NHS Foundation Trust,24-Nov-21,Staff Recharge,Trustwide,NHS Bradford District And Craven Ccg,7032700341,"27,163"
South West Yorkshire NHS Foundation Trust,10-Dec-21,Provision of Healthcare,Forensic,Humber NHS Foundation Trust,59890512,"27,150"
South West Yorkshire NHS Foundation Trust,01-Jan-22,Rent,Barnsley,Sjm Developments Ltd,LINV44555,"27,000"
South West Yorkshire NHS Foundation Trust,02-Nov-21,Utilities,Trustwide,Edf Energy Customers Ltd,000010873091,"26,404"
South West Yorkshire NHS Foundation Trust,29-Nov-21,Rent,Barnsley,Community Health Partnerships Ltd,0060221108,"26,233"
